fUSD/lending_fUSD_20240113
["ID","MTS","AMOUNT","RATE_DAILY","PERIOD"]
[311514087,1705171846809,-500.0,0.00022769,2]
[311514088,1705171846818,-500.0,0.00022769,2]
[311514089,1705171846827,-500.0,0.00022769,2]
[311514090,1705171846837,-500.0,0.00022769,2]
[311514091,1705171846845,-500.0,0.00022769,2]
[311514092,1705171846855,-500.0,0.00022769,2]
[311514093,1705171846865,-500.0,0.00022769,2]
[311514094,1705171846875,-500.0,0.00022769,2]
[311514095,1705171846884,-1209.11,0.00022769,2]
[311514096,1705171846893,-1209.11,0.00022769,2]
[311514097,1705171846902,-1209.11,0.00022769,2]
[311514099,1705171846912,-1209.11,0.00022769,2]
[311514101,1705171846921,-1209.11,0.00022769,2]
[311514102,1705171846932,-500.0,0.00022769,2]
[311514103,1705171846941,-500.0,0.00022769,2]
[311514104,1705171846951,-500.0,0.00022769,2]
[311514105,1705171846961,-500.0,0.00022769,2]
[311514106,1705171846970,-500.0,0.00022769,2]
[311514107,1705171846979,-500.0,0.00022769,2]
[311514108,1705171846991,-500.0,0.00022769,2]
[311514109,1705171847002,-500.0,0.00022769,2]
[311514110,1705171847011,-182.18,0.00022769,2]
[311514111,1705171847022,-500.0,0.00022769,2]
[311514112,1705171847031,-500.0,0.00022769,2]
[311514113,1705171847041,-500.0,0.00022769,2]
[311514114,1705171847050,-500.0,0.00022769,2]
[311514115,1705171847060,-339.98,0.00022769,2]
[311514116,1705171847070,-500.0,0.00022769,2]
[311514117,1705171847080,-500.0,0.00022769,2]
[311514118,1705171847088,-500.0,0.00022769,2]
[311514119,1705171847098,-500.0,0.00022769,2]
[311514120,1705171847107,-187.57837549,0.00022769,2]
[311514121,1705171847117,-716.29,0.00022769,2]
[311514122,1705171847126,-716.29,0.00022769,2]
[311514123,1705171847135,-716.29,0.00022769,2]
[311514124,1705171847144,-716.29,0.00022769,2]
[311514125,1705171847153,-716.29,0.00022769,2]
[311514126,1705171847162,-842.15,0.00022769,2]
[311514127,1705171847172,-176.13,0.00022774,2]
[311514128,1705171847182,-150.0,0.0002278,2]
[311514129,1705171847191,-200.0,0.00022798,2]
[311514130,1705171847200,-909.99,0.00022799,2]
[311514131,1705171847209,-909.99,0.00022799,2]
[311514132,1705171847218,-909.99,0.00022799,2]
[311514133,1705171847227,-909.99,0.00022799,2]
[311514134,1705171847237,-909.99,0.00022799,2]
[311514135,1705171847246,-909.99,0.00022799,2]
[311514136,1705171847255,-909.99,0.00022799,2]
[311514137,1705171847264,-500.0,0.00022799,2]
[311514138,1705171847272,-500.0,0.00022799,2]
[311514139,1705171847282,-500.0,0.00022799,2]
[311514140,1705171847290,-500.0,0.00022799,2]
[311514141,1705171847299,-500.0,0.00022799,2]
[311514142,1705171847308,-500.0,0.00022799,2]
[311514143,1705171847317,-500.0,0.00022799,2]
[311514144,1705171847326,-500.0,0.00022799,2]
[311514145,1705171847335,-500.0,0.00022799,2]
[311514146,1705171847344,-500.0,0.00022799,2]
[311514147,1705171847353,-500.0,0.00022799,2]
[311514148,1705171847363,-500.0,0.00022799,2]
[311514149,1705171847372,-500.0,0.00022799,2]
[311514150,1705171847381,-500.0,0.00022799,2]
[311514151,1705171847390,-500.0,0.00022799,2]
[311514152,1705171847400,-500.0,0.00022799,2]
[311514153,1705171847409,-500.0,0.00022799,2]
[311514154,1705171847418,-500.0,0.00022799,2]
[311514155,1705171847428,-500.0,0.00022799,2]
[311514156,1705171847438,-500.0,0.00022799,2]
[311514157,1705171847447,-500.0,0.00022799,2]
[311514158,1705171847458,-500.0,0.00022799,2]
[311514159,1705171847469,-500.0,0.00022799,2]
[311514160,1705171847478,-500.0,0.00022799,2]
[311514161,1705171847487,-500.0,0.00022799,2]
[311514162,1705171847497,-500.0,0.00022799,2]
[311514163,1705171847506,-500.0,0.00022799,2]
[311514164,1705171847517,-1209.11,0.00022799,2]
[311514165,1705171847530,-1209.11,0.00022799,2]
[311514166,1705171847543,-500.0,0.00022799,2]
[311514167,1705171847552,-500.0,0.00022799,2]
[311514168,1705171847561,-3680.7,0.00022799,2]
[311514169,1705171847570,-3680.7,0.00022799,2]
[311514170,1705171847579,-3680.7,0.00022799,2]
[311514171,1705171847587,-551.07,0.00022799,2]
[311514172,1705171847596,-716.29,0.00022799,2]
[311514173,1705171847605,-716.29,0.00022799,2]
[311514174,1705171847614,-843.37,0.00022799,2]
[311514175,1705171847624,-843.37,0.00022799,2]
[311514176,1705171847633,-843.37,0.00022799,2]
[311514177,1705171847642,-473.68,0.00022799,2]
[311514178,1705171847652,-1896.4,0.00022799,2]
[311514179,1705171847663,-1896.4,0.00022799,2]
[311514180,1705171847675,-1896.4,0.00022799,2]
[311514181,1705171847684,-373.85,0.00022799,2]
[311514182,1705171847693,-1647.75,0.00022799,2]
[311514183,1705171847702,-1647.75,0.00022799,2]
[311514184,1705171847712,-1647.75,0.00022799,2]
[311514185,1705171847722,-500.0,0.00022799,2]
[311514186,1705171847731,-500.0,0.00022799,2]
[311514187,1705171847741,-500.0,0.00022799,2]
[311514188,1705171847751,-500.0,0.00022799,2]
[311514189,1705171847761,-500.0,0.00022799,2]
[311514190,1705171847771,-500.0,0.00022799,2]
[311514191,1705171847784,-500.0,0.00022799,2]
[311514192,1705171847793,-665.11,0.00022799,2]
[311514193,1705171847803,-665.11,0.00022799,2]
[311514194,1705171847814,-665.11,0.00022799,2]
[311514195,1705171847824,-660.19,0.00022799,2]
[311514196,1705171847835,-660.19,0.00022799,2]
[311514197,1705171847845,-660.19,0.00022799,2]
[311514198,1705171847855,-500.0,0.00022799,2]
[311514199,1705171847866,-500.0,0.00022799,2]
[311514200,1705171847877,-500.0,0.00022799,2]
[311514201,1705171847886,-500.0,0.00022799,2]
[311514202,1705171847897,-500.0,0.00022799,2]
[311514203,1705171847907,-500.0,0.00022799,2]
[311514204,1705171847917,-500.0,0.00022799,2]
[311514205,1705171847926,-500.0,0.00022799,2]
[311514206,1705171847935,-500.0,0.00022799,2]
[311514207,1705171847944,-500.0,0.00022799,2]
[311514208,1705171847954,-500.0,0.00022799,2]
[311514209,1705171847963,-486.52,0.00022799,2]
[311514210,1705171847972,-1569.0,0.00022799,2]
[311514211,1705171847982,-254.25355209,0.000228,2]
[311514212,1705171847991,-120378.48516179,0.000228,2]
[311514213,1705171848227,-49390.38221602,0.000228,2]
[311514214,1705171848239,-121232.70778353,0.000228,2]
[311514215,1705171848287,-94206.68980495,0.000228,2]
[311514216,1705171848321,-119958.90631897,0.000228,2]
[311514217,1705171848330,-150.0,0.000228,2]
[311514218,1705171848340,-200.0,0.00022801,2]
[311514219,1705171848350,-500.0,0.00022804,2]
[311514220,1705171848359,-200.0,0.00022804,2]
[311514221,1705171848368,-200.0,0.00022804,2]
[311514222,1705171848377,-800.0,0.00022804,2]
[311514223,1705171848386,-150.0,0.00022809,2]
[311514224,1705171848395,-200.0,0.00022809,2]
[311514225,1705171848404,-200.0,0.00022815,2]
[311514226,1705171848413,-150.0,0.00022825,2]
[311514227,1705171848422,-150.0,0.00022829,2]
[311514228,1705171848432,-150.0,0.00022831,2]
[311514229,1705171848441,-150.0,0.00022832,2]
[311514230,1705171848451,-150.0,0.00022833,2]
[311514231,1705171848460,-276.07,0.00022836,2]
[311514232,1705171848469,-150.0,0.00022837,2]
[311514233,1705171848480,-297.88,0.00022844,2]
[311514234,1705171848490,-500.0,0.00022845,2]
[311514235,1705171848500,-1500.0,0.00022853,2]
[311514236,1705171848512,-150.0,0.00022858,2]
[311514237,1705171848524,-150.0,0.00022864,2]
[311514238,1705171848533,-150.0,0.00022876,2]
[311514239,1705171848542,-150.0,0.00022876,2]
[311514240,1705171848553,-842.15,0.00022881,2]
[311514241,1705171848563,-271.48297066,0.00022883,2]
[311514242,1705171848572,-150.0,0.00022887,2]
[311514243,1705171848582,-150.0,0.00022888,2]
[311514244,1705171848591,-300.0,0.00022889,2]
[311514245,1705171848600,-1093.2292907,0.0002289,2]
[311514246,1705171848609,-909.99,0.00022895,2]
[311514247,1705171848618,-418.09,0.00022895,2]
[311514248,1705171848627,-500.0,0.00022895,2]
[311514249,1705171848636,-573.33,0.00022895,2]
[311514250,1705171848645,-500.0,0.00022896,2]
[311514251,1705171848654,-345.02307654,0.00022896,2]
[311514252,1705171848663,-1209.11,0.00022896,2]
[311514253,1705171848672,-500.0,0.00022896,2]
[311514254,1705171848686,-3680.7,0.00022896,2]
[311514255,1705171848696,-716.29,0.00022896,2]
[311514256,1705171848705,-843.37,0.00022896,2]
[311514257,1705171848715,-1896.4,0.00022896,2]
[311514258,1705171848725,-1647.75,0.00022896,2]
[311514259,1705171848734,-500.0,0.00022896,2]
[311514260,1705171848743,-665.11,0.00022896,2]
[311514261,1705171848753,-660.19,0.00022896,2]
[311514262,1705171848763,-500.0,0.00022896,2]
[311514263,1705171848772,-500.0,0.00022896,2]
[311514264,1705171848782,-5000.0,0.00022897,2]
[311514265,1705171848790,-1000.0,0.00022897,2]
[311514266,1705171848799,-100000.0,0.00022897,2]
[311514267,1705171848808,-14299.50816229,0.00022897,2]
[311514268,1705171848817,-863.03115666,0.000229,2]
[311514269,1705171848826,-150.0,0.00022909,2]
[311514270,1705171848835,-150.0,0.00022914,2]
[311514271,1705171848845,-150.0,0.00022916,2]
[311514272,1705171848854,-150.0,0.00022919,2]
[311514273,1705171848863,-150.0,0.00022924,2]
[311514274,1705171848872,-150.0,0.00022924,2]
[311514275,1705171848882,-262.31,0.00022925,2]
[311514276,1705171848891,-150.0,0.00022927,2]
[311514277,1705171848900,-150.0,0.00022929,2]
[311514278,1705171848909,-150.0,0.00022934,2]
[311514279,1705171848919,-307.04,0.00022938,2]
[311514280,1705171848928,-1390.829,0.00022938,2]
[311514281,1705171848937,-449.0,0.00022938,2]
[311514282,1705171848946,-835.0,0.00022938,2]
[311514283,1705171848955,-1881.33,0.00022938,2]
[311514284,1705171848964,-1083.246,0.00022938,2]
[311514285,1705171848974,-1234.0,0.00022938,2]
[311514286,1705171848983,-1252.0,0.00022938,2]
[311514287,1705171848992,-526.0,0.00022938,2]
[311514288,1705171849002,-700.0,0.00022938,2]
[311514289,1705171849011,-494.879,0.00022938,2]
[311514290,1705171849020,-1931.0,0.00022938,2]
[311514291,1705171849030,-240.038,0.00022938,2]
[311514292,1705171849039,-235.0,0.00022938,2]
[311514293,1705171849048,-510.186,0.00022938,2]
[311514294,1705171849058,-879.0,0.00022938,2]
[311514295,1705171849067,-318.0,0.00022938,2]
[311514296,1705171849077,-2902.0,0.00022938,2]
[311514297,1705171849087,-4632.472,0.00022938,2]
[311514298,1705171849096,-167.959,0.00022938,2]
[311514299,1705171849106,-7343.0,0.00022938,2]
[311514300,1705171849115,-4166.0,0.00022938,2]
[311514301,1705171849124,-5566.0,0.00022938,2]
[311514302,1705171849134,-150.0,0.00022938,2]
[311514303,1705171849143,-150.436,0.00022938,2]
[311514304,1705171849153,-19683.0,0.00022938,2]
[311514305,1705171849163,-2271.0,0.00022938,2]
[311514306,1705171849174,-8086.0,0.00022938,2]
[311514307,1705171849183,-284.928,0.00022938,2]
[311514308,1705171849192,-256.349,0.00022938,2]
[311514309,1705171849202,-1028.0,0.00022938,2]
[311514310,1705171849211,-159.578,0.00022938,2]
[311514311,1705171849221,-150.649,0.00022938,2]
[311514312,1705171849230,-150.0,0.00022938,2]
[311514313,1705171849239,-250.0,0.00022938,2]
[311514314,1705171849249,-150.0,0.00022939,2]
[311514315,1705171849259,-150.0,0.00022939,2]
[311514316,1705171849268,-150.0,0.0002294,2]
[311514317,1705171849278,-1500.0,0.00022945,2]
[311514318,1705171849287,-276.07,0.00022947,2]
[311514319,1705171849297,-150.0,0.00022948,2]
[311514320,1705171849307,-150.0,0.00022955,2]
[311514321,1705171849316,-307.40170157,0.00022955,2]
[311514322,1705171849325,-1500.0,0.00022957,2]
[311514323,1705171849334,-403.37,0.00022959,2]
[311514324,1705171849344,-150.0,0.0002296,2]
[311514325,1705171849353,-150.0,0.00022967,2]
[311514326,1705171849363,-1500.0,0.0002297,2]
[311514327,1705171849372,-150.0,0.0002297,2]
[311514328,1705171849382,-150.0,0.00022973,2]
[311514329,1705171849391,-150.0,0.0002298,2]
[311514330,1705171849401,-152.71432783,0.00022981,2]
[311514331,1705171849410,-150.0,0.00022983,2]
[311514332,1705171849420,-150.0,0.00022983,2]
[311514333,1705171849429,-150.0,0.00022983,2]
[311514334,1705171849438,-150.0,0.00022985,2]
[311514335,1705171849447,-150.0,0.00022989,2]
[311514336,1705171849457,-150.0,0.0002299,2]
[311514337,1705171849466,-150.0,0.00022991,2]
[311514338,1705171849476,-150.0,0.00022991,2]
[311514339,1705171849485,-418.82,0.00022992,2]
[311514340,1705171849494,-1209.11,0.00022992,2]
[311514341,1705171849504,-500.0,0.00022992,2]
[311514342,1705171849514,-716.29,0.00022992,2]
[311514343,1705171849523,-842.15,0.00022992,2]
[311514344,1705171849532,-200.0,0.00022993,2]
[311514345,1705171849542,-308.0,0.00022993,2]
[311514346,1705171849551,-233.95811832,0.00022993,2]
[311514347,1705171849560,-841.40945132,0.00022993,2]
[311514348,1705171849570,-150.0,0.00022993,2]
[311514349,1705171849579,-909.99,0.00022993,2]
[311514350,1705171849589,-500.0,0.00022993,2]
[311514351,1705171849600,-172.0749087,0.00022994,2]
[311514352,1705171849610,-383.68557165,0.00022994,2]
[311514353,1705171849620,-404.40955755,0.00022994,2]
[311514354,1705171849630,-3750.7418926,0.00022995,2]
[311514355,1705171849640,-578.97126269,0.00022995,2]
[311514356,1705171849650,-500.0,0.00022995,2]
[311514357,1705171849659,-500.0,0.00022995,2]
[311514358,1705171849669,-1120.6599101,0.00022996,2]
[311514359,1705171849680,-1057.63711347,0.00022996,2]
[311514360,1705171849690,-1000.0,0.00022996,2]
[311514361,1705171849700,-1000.0,0.00022996,2]
[311514362,1705171849710,-909.99,0.00022996,2]
[311514363,1705171849721,-909.99,0.00022996,2]
[311514364,1705171849731,-909.99,0.00022996,2]
[311514365,1705171849741,-909.99,0.00022996,2]
[311514366,1705171849751,-909.99,0.00022996,2]
[311514367,1705171849761,-500.0,0.00022996,2]
[311514368,1705171849770,-500.0,0.00022996,2]
[311514369,1705171849781,-500.0,0.00022996,2]
[311514370,1705171849790,-500.0,0.00022996,2]
[311514371,1705171849800,-500.0,0.00022996,2]
[311514372,1705171849809,-500.0,0.00022996,2]
[311514373,1705171849819,-500.0,0.00022996,2]
[311514374,1705171849828,-500.0,0.00022996,2]
[311514375,1705171849837,-500.0,0.00022996,2]
[311514376,1705171849847,-500.0,0.00022996,2]
[311514377,1705171849856,-317.823804,0.00022997,2]
[311514378,1705171849865,-317.823804,0.00022997,2]
[311514379,1705171849875,-32793.08139799,0.00022997,2]
[311514380,1705171849884,-288.34262207,0.00022997,2]
[311514381,1705171849894,-160.72539687,0.00022997,2]
[311514382,1705171849904,-693.59855735,0.00022997,2]
[311514383,1705171849914,-184.17252999,0.00022997,2]
[311514384,1705171849923,-253.03478513,0.00022997,2]
[311514385,1705171849933,-167.8946825,0.00022997,2]
[311514386,1705171849942,-2000.0,0.00022997,2]
[311514387,1705171849951,-200.0,0.00022997,2]
[311514388,1705171849961,-1000.0,0.00022997,2]
[311514389,1705171849971,-1000.0,0.00022997,2]
[311514390,1705171849980,-1000.0,0.00022997,2]
[311514391,1705171849990,-672.98125884,0.00022999,2]
[311514392,1705171850000,-241.3198202,0.00022999,2]
[311514393,1705171850010,-3293.04376977,0.00022999,2]
[311514394,1705171850020,-300.02,0.00022999,2]
[311514395,1705171850031,-909.99,0.00022999,2]
[311514396,1705171850041,-909.99,0.00022999,2]
[311514397,1705171850050,-909.99,0.00022999,2]
[311514398,1705171850060,-909.99,0.00022999,2]
[311514399,1705171850069,-909.99,0.00022999,2]
[311514400,1705171850079,-909.99,0.00022999,2]
[311514401,1705171850088,-910.06541668,0.00022999,2]
[311514402,1705171850098,-500.0,0.00022999,2]
[311514403,1705171850107,-500.0,0.00022999,2]
[311514404,1705171850117,-500.0,0.00022999,2]
[311514405,1705171850126,-624.11,0.00022999,2]
[311514406,1705171850136,-1209.11,0.00022999,2]
[311514407,1705171850146,-1209.11,0.00022999,2]
[311514408,1705171850155,-1209.11,0.00022999,2]
[311514409,1705171850164,-1209.11,0.00022999,2]
[311514410,1705171850174,-1209.11,0.00022999,2]
[311514411,1705171850184,-1209.11,0.00022999,2]
[311514412,1705171850195,-1209.23999999,0.00022999,2]
[311514413,1705171850206,-500.0,0.00022999,2]
[311514414,1705171850216,-500.0,0.00022999,2]
[311514415,1705171850226,-276.3,0.00022999,2]
[311514416,1705171850236,-3680.7,0.00022999,2]
[311514417,1705171850247,-3680.7,0.00022999,2]
[311514418,1705171850257,-3680.7,0.00022999,2]
[311514419,1705171850267,-3680.7,0.00022999,2]
[311514420,1705171850278,-3680.7,0.00022999,2]
[311514421,1705171850288,-3680.7,0.00022999,2]
[311514422,1705171850297,-3680.72,0.00022999,2]
[311514423,1705171850307,-716.29,0.00022999,2]
[311514424,1705171850316,-716.29,0.00022999,2]
[311514425,1705171850326,-843.37,0.00022999,2]
[311514426,1705171850336,-716.29,0.00022999,2]
[311514427,1705171850345,-716.29,0.00022999,2]
[311514428,1705171850355,-843.37,0.00022999,2]
[311514429,1705171850365,-716.29,0.00022999,2]
[311514430,1705171850375,-843.37,0.00022999,2]
[311514431,1705171850385,-716.29,0.00022999,2]
[311514432,1705171850395,-716.43,0.00022999,2]
[311514433,1705171850405,-843.37,0.00022999,2]
[311514434,1705171850415,-843.37,0.00022999,2]
[311514435,1705171850424,-843.37,0.00022999,2]
[311514436,1705171850434,-843.45715353,0.00022999,2]
[311514437,1705171850444,-1896.4,0.00022999,2]
[311514438,1705171850454,-1896.4,0.00022999,2]
[311514439,1705171850463,-1896.4,0.00022999,2]
[311514440,1705171850473,-1896.4,0.00022999,2]
[311514441,1705171850483,-1896.4,0.00022999,2]
[311514442,1705171850492,-1896.4,0.00022999,2]
[311514443,1705171850502,-1896.49003057,0.00022999,2]
[311514444,1705171850512,-1647.75,0.00022999,2]
[311514445,1705171850522,-1647.75,0.00022999,2]
[311514446,1705171850533,-1647.75,0.00022999,2]
[311514447,1705171850542,-1647.75,0.00022999,2]
[311514448,1705171850551,-1647.75,0.00022999,2]
[311514449,1705171850561,-1647.75,0.00022999,2]
[311514450,1705171850570,-1647.82475941,0.00022999,2]
[311514451,1705171850581,-665.11,0.00022999,2]
[311514452,1705171850590,-665.11,0.00022999,2]
[311514453,1705171850600,-665.11,0.00022999,2]
[311514454,1705171850609,-665.11,0.00022999,2]
[311514455,1705171850619,-665.11,0.00022999,2]
[311514456,1705171850628,-665.11,0.00022999,2]
[311514457,1705171850638,-665.34,0.00022999,2]
[311514458,1705171850648,-660.19,0.00022999,2]
[311514459,1705171850657,-660.19,0.00022999,2]
[311514460,1705171850667,-660.19,0.00022999,2]
[311514461,1705171850679,-660.19,0.00022999,2]
[311514462,1705171850689,-660.19,0.00022999,2]
[311514463,1705171850698,-660.19,0.00022999,2]
[311514464,1705171850708,-660.33,0.00022999,2]
[311514465,1705171850717,-500.0,0.00022999,2]
[311514466,1705171850727,-500.0,0.00022999,2]
[311514467,1705171850737,-500.0,0.00022999,2]
[311514468,1705171850748,-500.0,0.00022999,2]
[311514469,1705171850757,-592.0364675,0.00022999,2]
[311514470,1705171850767,-500.0,0.00022999,2]
[311514471,1705171850778,-500.0,0.00022999,2]
[311514472,1705171850788,-500.0,0.00022999,2]
[311514473,1705171850798,-500.0,0.00022999,2]
[311514474,1705171850807,-500.0,0.00022999,2]
[311514475,1705171850817,-796420.63460644,0.00023,2]
[311514476,1705171850827,-155.0,0.00023,2]
[311514477,1705171850837,-533.85064051,0.00023,2]
[311514478,1705171850846,-631.67168294,0.00023,2]
[311514479,1705171850856,-383.9779648,0.00023,2]
[311514480,1705171850866,-4084.95222772,0.00023,2]
[311514481,1705171850877,-1197.188018,0.00023,2]
[311514482,1705171850887,-1000.0,0.00023,2]
[311514483,1705171850897,-933.22572837,0.00023,2]
[311514484,1705171850908,-2000.0,0.00023,2]
[311514485,1705171850918,-200.0,0.00023,2]
[311514486,1705171850928,-317.823804,0.00023,2]
[311514487,1705171850938,-317.823804,0.00023,2]
[311514488,1705171850948,-211.361665,0.00023,2]
[311514489,1705171850958,-150.0,0.00023,2]
[311514490,1705171850968,-500.0,0.00023,2]
[311514491,1705171850978,-148102.184648,0.00023,2]
[311514492,1705171850988,-1450.1733719,0.00023,2]
[311514493,1705171850998,-869.69276192,0.00023,2]
[311514494,1705171851008,-343.0,0.00023,2]
[311514495,1705171851019,-51873.6231526,0.00023,2]
[311514496,1705171851031,-571.9038,0.00023,2]
[311514497,1705171851042,-528.7884471,0.00023,2]
[311514498,1705171851052,-2197.3275482,0.00023,2]
[311514499,1705171851061,-433.0,0.00023,2]
[311514500,1705171851071,-1500.0,0.00023,2]
[311514501,1705171851081,-6231.8604348,0.00023,2]
[311514502,1705171851090,-3175.9763417,0.00023,2]
[311514503,1705171851100,-189.27,0.00023,2]
[311514504,1705171851110,-3368.3193826,0.00023,2]
[311514505,1705171851120,-1000.0,0.00023,2]
[311514506,1705171851131,-333.1127,0.00023,2]
[311514507,1705171851141,-155.19,0.00023006,2]
[311514508,1705171851152,-562.64,0.00023016,2]
[311514509,1705171851162,-1407.62915886,0.00023024,2]
[311514510,1705171851172,-500.0,0.00023043,2]
[311514511,1705171851184,-151.75,0.00023055,2]
[311514512,1705171851194,-297.88,0.00023056,2]
[311514513,1705171851204,-276.07,0.00023059,2]
[311514514,1705171851214,-1226.42,0.00023078,2]
[311514515,1705171851224,-842.15,0.00023104,2]
[311514516,1705171851235,-152.63,0.00023125,2]
[311514517,1705171851244,-200000.0,0.00023127,2]
[311514518,1705171851254,-562.64,0.00023128,2]
[311514519,1705171851264,-155.19,0.0002313,2]
[311514520,1705171851275,-262.31,0.00023137,2]
[311514521,1705171851285,-3165.56,0.00023142,2]
[311514522,1705171851551,-155.4,0.00023146,2]
[311514523,1705171851561,-276.07,0.0002317,2]
[311514524,1705171851571,-1226.42,0.00023191,2]
[311514525,1705171851581,-842.15,0.00023216,2]
[311514526,1705171851590,-2000.0,0.00023227,2]
[311514527,1705171851600,-200.0,0.00023227,2]
[311514528,1705171851609,-200.0,0.0002323,2]
[311514529,1705171851619,-562.64,0.00023239,2]
[311514530,1705171851628,-155.19,0.00023254,2]
[311514531,1705171851638,-29001.44011506,0.00023264,2]
[311514532,1705171851647,-152.63,0.00023266,2]
[311514533,1705171851656,-151.75,0.00023267,2]
[311514534,1705171851666,-1220.14373989,0.00023267,2]
[311514535,1705171851677,-297.88,0.00023267,2]
[311514536,1705171851695,-276.07,0.00023281,2]
[311514537,1705171851704,-155.4,0.00023299,2]
[311514538,1705171851713,-1226.42,0.00023304,2]
[311514539,1705171851722,-176.13,0.00023322,2]
[311514540,1705171851732,-842.15,0.00023327,2]
[311514541,1705171851741,-311.25770179,0.0002333,2]
[311514542,1705171851751,-262.31,0.00023349,2]
[311514543,1705171851760,-562.64,0.00023351,2]
[311514544,1705171851769,-154.6,0.0002336,2]
[311514545,1705171851779,-150.0,0.0002338,2]
[311514546,1705171851788,-1226.42,0.00023417,2]
[311514547,1705171851798,-155.4,0.00023452,2]
[311514548,1705171851807,-311.33364759,0.00023459,2]
[311514549,1705171851817,-151.75,0.00023478,2]
[311514550,1705171851826,-297.88,0.00023479,2]
[311514551,1705171851836,-1220.14373989,0.0002349,2]
[311514552,1705171851845,-150.0,0.00023501,2]
[311514553,1705171851854,-150.0,0.00023501,2]
[311514554,1705171851864,-150.0,0.00023501,2]
[311514555,1705171851873,-150.0,0.00023501,2]
[311514556,1705171851882,-150.0,0.00023501,2]
[311514557,1705171851892,-151.37,0.00023501,2]
[311514558,1705171851901,-150.0,0.00023501,2]
[311514559,1705171851910,-150.0,0.00023501,2]
[311514560,1705171851920,-150.0,0.00023501,2]
[311514561,1705171851929,-150.0,0.00023501,2]
[311514562,1705171851939,-150.0,0.00023501,2]
[311514563,1705171851948,-150.0,0.00023501,2]
[311514564,1705171851958,-150.0,0.00023501,2]
[311514565,1705171851968,-150.0,0.00023501,2]
[311514566,1705171851977,-207.16,0.00023501,2]
[311514567,1705171851986,-1226.42,0.00023531,2]
[311514568,1705171851996,-262.31,0.00023562,2]
[311514569,1705171852006,-155.4,0.00023605,2]
[311514570,1705171852015,-1226.42,0.00023644,2]
[311514571,1705171852026,-209.0,0.0002366,2]
[311514572,1705171852035,-151.75,0.0002369,2]
[311514573,1705171852045,-297.88,0.0002369,2]
[311514574,1705171852054,-2507.65305162,0.00023722,2]
[311514575,1705171852064,-558.53,0.00023758,2]
[311514576,1705171852073,-262.31,0.00023774,2]
[311514577,1705171852083,-558.84,0.00023792,2]
[311514578,1705171852092,-551.45,0.00023834,2]
[311514579,1705171852101,-3119.28,0.00023839,2]
[311514580,1705171852111,-500.0,0.00023858,2]
[311514581,1705171852121,-154.6,0.00023862,2]
[311514582,1705171852130,-176.13,0.0002387,2]
[311514583,1705171852140,-300.0,0.00023885,2]
[311514584,1705171852149,-30000.0,0.000239,2]
[311514585,1705171852159,-151.75,0.00023901,2]
[311514586,1705171852169,-297.88,0.00023902,2]
[311514587,1705171852178,-262.31,0.00023986,2]
[311514588,1705171852189,-155.0,0.00024,2]